fUST/lending_fUST_20250625
["ID","MTS","AMOUNT","RATE_DAILY","PERIOD"]
[367518048,1750841438306,-292.41,0.00017135,3]
[367518049,1750841438316,-877.26,0.00017135,3]
[367518050,1750841438325,-500.0,0.00017138,2]
[367518051,1750841438335,-500.0,0.00017138,2]
[367518052,1750841438344,-500.0,0.00017138,2]
[367518053,1750841438354,-632.30255554,0.00017138,2]
[367518054,1750841438364,-500.0,0.00017138,2]
[367518056,1750841438373,-494.30175299,0.00017138,2]
[367518058,1750841438382,-500.0,0.00017138,2]
[367518059,1750841438392,-500.0,0.00017138,2]
[367518061,1750841438402,-500.0,0.00017138,2]
[367518063,1750841438412,-500.0,0.00017138,2]
[367518064,1750841438421,-500.0,0.00017138,2]
[367518065,1750841438431,-500.0,0.00017138,2]
[367518066,1750841438440,-500.0,0.00017138,2]
[367518067,1750841438450,-500.0,0.00017138,2]
[367518068,1750841438459,-500.0,0.00017138,2]
[367518069,1750841438469,-500.0,0.00017138,2]
[367518070,1750841438478,-166.10584101,0.00017138,2]
[367518071,1750841438488,-500.0,0.00017138,2]
[367518072,1750841438498,-500.0,0.00017138,2]
[367518073,1750841438508,-500.0,0.00017138,2]
[367518074,1750841438517,-195.41,0.0001714,2]
[367518075,1750841438528,-163.21,0.0001714,2]
[367518076,1750841438539,-2749.87,0.00017141,2]
[367518077,1750841438550,-460.0,0.00017141,2]
[367518078,1750841438561,-460.0,0.00017141,2]
[367518079,1750841438572,-460.0,0.00017141,2]
[367518080,1750841438582,-460.0,0.00017141,2]
[367518081,1750841438591,-828.92,0.00017141,2]
[367518082,1750841438600,-2754.45,0.00017141,2]
[367518083,1750841438609,-2119.2,0.00017141,2]
[367518084,1750841438619,-460.0,0.00017141,2]
[367518085,1750841438629,-460.0,0.00017141,2]
[367518086,1750841438639,-460.0,0.00017141,2]
[367518087,1750841438648,-460.0,0.00017141,2]
[367518088,1750841438662,-165.48,0.00017141,2]
[367518089,1750841438672,-460.0,0.00017141,2]
[367518090,1750841438681,-460.0,0.00017141,2]
[367518091,1750841438690,-460.0,0.00017141,2]
[367518092,1750841438701,-460.0,0.00017141,2]
[367518093,1750841438711,-1804.43,0.00017141,2]
[367518094,1750841438720,-460.0,0.00017141,2]
[367518095,1750841438731,-460.0,0.00017141,2]
[367518096,1750841438740,-460.0,0.00017141,2]
[367518097,1750841438750,-460.0,0.00017141,2]
[367518098,1750841438760,-656.18,0.00017141,2]
[367518099,1750841438770,-460.0,0.00017141,2]
[367518100,1750841438779,-2351.99,0.00017141,2]
[367518101,1750841438788,-460.0,0.00017141,2]
[367518102,1750841438797,-460.0,0.00017142,2]
[367518103,1750841438807,-460.0,0.00017142,2]
[367518104,1750841438816,-460.0,0.00017142,2]
[367518105,1750841438825,-885.96,0.00017142,2]
[367518107,1750841438986,-460.0,0.00017142,2]
[367518108,1750841438996,-590.77,0.00017142,2]
[367518109,1750841439006,-460.0,0.00017142,2]
[367518110,1750841439015,-150.05,0.00017142,2]
[367518111,1750841439024,-309.85614925,0.00017142,2]
[367518112,1750841439034,-460.0,0.00017142,2]
[367518113,1750841439043,-460.0,0.00017142,2]
[367518114,1750841439053,-460.0,0.00017142,2]
[367518115,1750841439062,-555.64,0.00017142,2]
[367518116,1750841439072,-460.0,0.00017142,2]
[367518117,1750841439082,-460.0,0.00017142,2]
[367518118,1750841439091,-5803.34,0.00017142,2]
[367518119,1750841439101,-460.0,0.00017142,2]
[367518120,1750841439111,-460.0,0.00017142,2]
[367518121,1750841439121,-460.0,0.00017142,2]
[367518123,1750841439130,-460.0,0.00017142,2]
[367518124,1750841439139,-460.0,0.00017142,2]
[367518126,1750841439149,-581.55,0.00017142,2]
[367518128,1750841439159,-480.18,0.00017142,2]
[367518129,1750841439168,-460.0,0.00017142,2]
[367518131,1750841439177,-493.36,0.00017142,2]
[367518133,1750841439188,-460.0,0.00017142,2]
[367518135,1750841439198,-460.0,0.00017142,2]
[367518137,1750841439207,-460.0,0.00017142,2]
[367518139,1750841439216,-508.0,0.00017142,2]
[367518141,1750841439225,-460.0,0.00017144,2]
[367518143,1750841439236,-460.0,0.00017144,2]
[367518145,1750841439245,-460.0,0.00017144,2]
[367518147,1750841439255,-460.0,0.00017144,2]
[367518149,1750841439264,-460.0,0.00017144,2]
[367518151,1750841439274,-2413.92,0.00017144,2]
[367518153,1750841439283,-600.44,0.00017144,2]
[367518155,1750841439293,-460.0,0.00017144,2]
[367518157,1750841439302,-460.0,0.00017144,2]
[367518159,1750841439313,-460.0,0.00017144,2]
[367518161,1750841439323,-1643.11,0.00017144,2]
[367518163,1750841439331,-543.01,0.00017144,2]
[367518165,1750841439341,-460.0,0.00017144,2]
[367518167,1750841439350,-1986.01,0.00017144,2]
[367518169,1750841439359,-532.52,0.00017145,2]
[367518171,1750841439369,-924.6,0.00017145,2]
[367518173,1750841439378,-4935.68,0.00017145,2]
[367518175,1750841439388,-857.61,0.00017145,2]
[367518177,1750841439397,-2953.27772597,0.00017319,2]
[367518179,1750841439408,-151.0,0.000174,2]
[367518181,1750841439418,-2749.87,0.00017415,2]
[367518183,1750841439427,-460.0,0.00017415,2]
[367518185,1750841439436,-460.0,0.00017415,2]
[367518187,1750841439445,-460.0,0.00017415,2]
[367518188,1750841439454,-828.92,0.00017415,2]
[367518190,1750841439464,-2754.45,0.00017415,2]
[367518191,1750841439475,-2119.2,0.00017415,2]
[367518193,1750841439484,-453.1014368,0.00017415,2]
[367518195,1750841439493,-460.0,0.00017415,2]
[367518197,1750841439503,-460.0,0.00017415,2]
[367518199,1750841439511,-460.0,0.00017415,2]
[367518201,1750841439521,-460.0,0.00017415,2]
[367518203,1750841439530,-460.0,0.00017415,2]
[367518205,1750841439539,-460.0,0.00017415,2]
[367518207,1750841439548,-460.0,0.00017415,2]
[367518209,1750841439559,-1804.43,0.00017415,2]
[367518211,1750841439568,-460.0,0.00017415,2]
[367518213,1750841439577,-460.0,0.00017415,2]
[367518215,1750841439587,-460.0,0.00017415,2]
[367518217,1750841439596,-460.0,0.00017415,2]
[367518219,1750841439606,-656.18,0.00017415,2]
[367518221,1750841439616,-460.0,0.00017415,2]
[367518223,1750841439625,-2351.99,0.00017415,2]
[367518225,1750841439635,-460.0,0.00017415,2]
[367518227,1750841439645,-460.0,0.00017416,2]
[367518229,1750841439660,-460.0,0.00017416,2]
[367518231,1750841439670,-885.96,0.00017416,2]
[367518234,1750841439679,-460.0,0.00017416,2]
[367518237,1750841439689,-421.05,0.00017416,2]
[367518239,1750841439699,-460.0,0.00017416,2]
[367518241,1750841439709,-460.0,0.00017416,2]
[367518243,1750841439718,-460.0,0.00017416,2]
[367518245,1750841439728,-555.64,0.00017416,2]
[367518247,1750841439737,-460.0,0.00017416,2]
[367518249,1750841439746,-460.0,0.00017416,2]
[367518251,1750841439755,-5803.34,0.00017416,2]
[367518253,1750841439764,-460.0,0.00017416,2]
[367518255,1750841439773,-460.0,0.00017416,2]
[367518257,1750841439783,-460.0,0.00017416,2]
[367518260,1750841439792,-460.0,0.00017416,2]
[367518263,1750841439801,-460.0,0.00017416,2]
[367518266,1750841439811,-480.18,0.00017416,2]
[367518268,1750841439820,-460.0,0.00017416,2]
[367518271,1750841439829,-493.36,0.00017416,2]
[367518273,1750841439838,-460.0,0.00017416,2]
[367518275,1750841439847,-460.0,0.00017416,2]
[367518277,1750841439856,-460.0,0.00017418,2]
[367518279,1750841439871,-460.0,0.00017418,2]
[367518281,1750841439881,-460.0,0.00017418,2]
[367518283,1750841439890,-460.0,0.00017418,2]
[367518285,1750841439900,-460.0,0.00017418,2]
[367518287,1750841439910,-2413.92,0.00017418,2]
[367518289,1750841439919,-600.44,0.00017418,2]
[367518291,1750841439929,-460.0,0.00017418,2]
[367518293,1750841439938,-460.0,0.00017418,2]
[367518295,1750841439948,-1643.11,0.00017418,2]
[367518297,1750841439958,-543.01,0.00017418,2]
[367518299,1750841439967,-460.0,0.00017418,2]
[367518301,1750841439977,-1986.01,0.00017418,2]
[367518303,1750841439986,-532.52,0.00017419,2]
[367518305,1750841439995,-924.6,0.00017419,2]
[367518307,1750841440003,-4935.68,0.00017419,2]
[367518309,1750841440013,-857.61,0.00017419,2]
[367518311,1750841440023,-500.0,0.00017533,2]
[367518313,1750841440032,-500.0,0.00017533,2]
[367518315,1750841440042,-205.678824,0.00017533,2]
[367518317,1750841440051,-151.0,0.00017533,2]
[367518319,1750841440061,-151.3624503,0.00017533,2]
[367518321,1750841440070,-151.0,0.00017533,2]
[367518322,1750841440080,-151.0,0.00017533,2]
[367518324,1750841440089,-151.0,0.00017533,2]
[367518326,1750841440098,-151.0,0.00017533,2]
[367518328,1750841440108,-151.0,0.00017533,2]
[367518330,1750841440117,-151.0,0.00017533,2]
[367518332,1750841440126,-151.0,0.00017533,2]
[367518334,1750841440136,-272.65372998,0.00017533,2]
[367518337,1750841440146,-151.0,0.00017533,2]
[367518339,1750841440156,-206.78739862,0.00017533,2]
[367518341,1750841440166,-500.0,0.0001756,2]
[367518343,1750841440175,-500.0,0.0001756,2]
[367518345,1750841440184,-151.0,0.0001756,2]
[367518347,1750841440193,-151.0,0.0001756,2]
[367518349,1750841440203,-209.3546536,0.0001756,2]
[367518351,1750841440211,-151.0,0.0001756,2]
[367518352,1750841440221,-245.0,0.0001756,2]
[367518354,1750841440230,-151.0,0.0001756,2]
[367518356,1750841440240,-151.0,0.0001756,2]
[367518359,1750841440250,-500.0,0.00017588,2]
[367518360,1750841440259,-500.0,0.00017588,2]
[367518362,1750841440268,-198.35356222,0.00017588,2]
[367518364,1750841440277,-199.12907132,0.00017588,2]
[367518366,1750841440286,-151.0,0.00017588,2]
[367518368,1750841440295,-151.0,0.00017588,2]
[367518370,1750841440304,-151.0,0.00017588,2]
[367518372,1750841440314,-500.0,0.00017615,2]
[367518374,1750841440323,-415.47087601,0.00017615,2]
[367518377,1750841440332,-197.999999,0.00017615,2]
[367518379,1750841440341,-151.0,0.00017615,2]
[367518381,1750841440351,-500.0,0.00017643,2]
[367518383,1750841440360,-500.0,0.0001767,2]
[367518385,1750841440369,-2749.87,0.00017689,2]
[367518386,1750841440379,-460.0,0.00017689,2]
[367518388,1750841440388,-460.0,0.00017689,2]
[367518390,1750841440397,-460.0,0.00017689,2]
[367518392,1750841440406,-828.92,0.00017689,2]
[367518394,1750841440415,-2754.45,0.00017689,2]
[367518396,1750841440424,-2119.2,0.00017689,2]
[367518398,1750841440433,-588.21,0.00017689,2]
[367518400,1750841440442,-460.0,0.00017689,2]
[367518402,1750841440451,-460.0,0.00017689,2]
[367518404,1750841440461,-460.0,0.00017689,2]
[367518406,1750841440470,-460.0,0.00017689,2]
[367518408,1750841440479,-460.0,0.00017689,2]
[367518410,1750841440488,-1804.43,0.00017689,2]
[367518412,1750841440498,-460.0,0.00017689,2]
[367518414,1750841440507,-460.0,0.00017689,2]
[367518416,1750841440516,-460.0,0.00017689,2]
[367518418,1750841440525,-460.0,0.00017689,2]
[367518420,1750841440534,-656.18,0.00017689,2]
[367518422,1750841440543,-460.0,0.00017689,2]
[367518424,1750841440552,-2351.99,0.00017689,2]
[367518426,1750841440561,-460.0,0.00017689,2]
[367518428,1750841440571,-460.0,0.0001769,2]
[367518430,1750841440582,-885.96,0.0001769,2]
[367518432,1750841440594,-460.0,0.0001769,2]
[367518434,1750841440605,-460.0,0.0001769,2]
[367518436,1750841440615,-460.0,0.0001769,2]
[367518438,1750841440624,-460.0,0.0001769,2]
[367518440,1750841440633,-555.64,0.0001769,2]
[367518442,1750841440642,-460.0,0.0001769,2]
[367518444,1750841440651,-460.0,0.0001769,2]
[367518446,1750841440665,-5803.34,0.0001769,2]
[367518448,1750841440674,-460.0,0.0001769,2]
[367518450,1750841440684,-460.0,0.0001769,2]
[367518453,1750841440695,-460.0,0.0001769,2]
[367518455,1750841440704,-434.87333193,0.0001769,2]
[367518457,1750841440714,-480.18,0.0001769,2]
[367518459,1750841440723,-162.63,0.0001769,2]
[367518461,1750841440733,-493.36,0.0001769,2]
[367518463,1750841440743,-460.0,0.0001769,2]
[367518465,1750841440752,-460.0,0.0001769,2]
[367518467,1750841440761,-460.0,0.00017692,2]
[367518469,1750841440770,-460.0,0.00017692,2]
[367518471,1750841440780,-460.0,0.00017692,2]
[367518473,1750841440789,-460.0,0.00017692,2]
[367518475,1750841440799,-460.0,0.00017692,2]
[367518477,1750841440808,-2413.92,0.00017692,2]
[367518479,1750841440818,-600.44,0.00017692,2]
[367518481,1750841440827,-460.0,0.00017692,2]
[367518483,1750841440836,-460.0,0.00017692,2]
[367518485,1750841440845,-1643.11,0.00017692,2]
[367518487,1750841440854,-543.01,0.00017692,2]
[367518489,1750841440863,-1986.01,0.00017692,2]
[367518491,1750841440873,-532.52,0.00017693,2]
[367518493,1750841440882,-924.6,0.00017693,2]
[367518495,1750841440891,-4935.68,0.00017693,2]
[367518497,1750841440901,-857.61,0.00017693,2]
[367518499,1750841440910,-500.0,0.00017697,2]
[367518501,1750841440919,-151.0,0.000177,2]
[367518503,1750841440929,-500.0,0.00017725,2]
[367518505,1750841440939,-500.0,0.00017752,2]
[367518507,1750841440948,-398.36095674,0.00017766,2]
[367518509,1750841440957,-500.0,0.00017779,2]
[367518511,1750841440967,-500.0,0.00017779,2]
[367518513,1750841440976,-500.0,0.00017779,2]
[367518515,1750841440986,-500.0,0.0001778,2]
[367518517,1750841440995,-2953.27772594,0.00017798,2]
[367518519,1750841441003,-184.29508588,0.00017805,2]
[367518521,1750841441013,-500.0,0.00017806,2]
[367518523,1750841441022,-500.0,0.00017807,2]
[367518525,1750841441031,-500.0,0.00017812,2]
[367518528,1750841441041,-500.0,0.0001783,2]
[367518529,1750841441051,-500.0,0.00017834,2]
[367518531,1750841441060,-500.0,0.00017836,2]
[367518534,1750841441069,-500.4149829,0.00017845,2]
[367518535,1750841441079,-500.0,0.00017845,2]
[367518538,1750841441089,-500.0,0.00017845,2]
[367518540,1750841441098,-627.1042849,0.00017845,2]
[367518541,1750841441107,-500.0,0.00017862,2]
[367518543,1750841441116,-500.55881292,0.00017868,2]
[367518545,1750841441126,-614.18597854,0.00017872,2]
[367518547,1750841441135,-500.0,0.00017872,2]
[367518549,1750841441144,-500.0,0.00017872,2]
[367518551,1750841441153,-500.0,0.00017889,2]
[367518553,1750841441162,-500.0,0.00017891,2]
[367518555,1750841441172,-500.0,0.00017891,2]
[367518557,1750841441181,-12767.07834649,0.000179,2]
[367518559,1750841441190,-340.0,0.00017917,2]
[367518561,1750841441199,-500.0,0.00017938,2]
[367518563,1750841441209,-2749.87,0.00017963,2]
[367518565,1750841441218,-460.0,0.00017963,2]
[367518567,1750841441228,-460.0,0.00017963,2]
[367518569,1750841441237,-460.0,0.00017963,2]
[367518571,1750841441247,-828.92,0.00017963,2]
[367518574,1750841441256,-2754.45,0.00017963,2]
[367518575,1750841441266,-2119.2,0.00017963,2]
[367518577,1750841441275,-460.0,0.00017963,2]
[367518579,1750841441284,-460.0,0.00017963,2]
[367518582,1750841441293,-460.0,0.00017963,2]
[367518584,1750841441302,-460.0,0.00017963,2]
[367518586,1750841441311,-460.0,0.00017963,2]
[367518588,1750841441320,-1804.43,0.00017963,2]
[367518590,1750841441330,-460.0,0.00017963,2]
[367518592,1750841441339,-460.0,0.00017963,2]
[367518594,1750841441348,-460.0,0.00017963,2]
[367518596,1750841441357,-460.0,0.00017963,2]
[367518598,1750841441366,-656.18,0.00017963,2]
[367518600,1750841441375,-460.0,0.00017963,2]
[367518602,1750841441384,-2351.99,0.00017963,2]
[367518604,1750841441393,-460.0,0.00017963,2]
[367518606,1750841441402,-460.0,0.00017964,2]
[367518608,1750841441411,-885.96,0.00017964,2]
[367518610,1750841441420,-460.0,0.00017964,2]
[367518612,1750841441429,-460.0,0.00017964,2]
[367518614,1750841441438,-460.0,0.00017964,2]
[367518616,1750841441447,-186.2680995,0.00017964,2]
[367518618,1750841441456,-555.64,0.00017964,2]
[367518619,1750841441465,-460.0,0.00017964,2]
[367518622,1750841441475,-460.0,0.00017964,2]
[367518624,1750841441483,-5803.34,0.00017964,2]
[367518626,1750841441492,-460.0,0.00017964,2]
[367518628,1750841441502,-460.0,0.00017964,2]
[367518630,1750841441512,-401.64815851,0.00017964,2]
[367518632,1750841441523,-480.18,0.00017964,2]
[367518634,1750841441532,-493.36,0.00017964,2]
[367518635,1750841441541,-460.0,0.00017964,2]
[367518636,1750841441550,-460.0,0.00017964,2]
[367518637,1750841441559,-460.0,0.00017966,2]
[367518638,1750841441568,-460.0,0.00017966,2]
[367518639,1750841441576,-460.0,0.00017966,2]
[367518640,1750841441586,-252.58,0.00017966,2]
[367518641,1750841441595,-460.0,0.00017966,2]
[367518642,1750841441604,-2413.92,0.00017966,2]
[367518643,1750841441614,-600.44,0.00017966,2]
[367518644,1750841441626,-460.0,0.00017966,2]
[367518645,1750841441638,-460.0,0.00017966,2]
[367518646,1750841441647,-1643.11,0.00017966,2]
[367518647,1750841441660,-543.01,0.00017966,2]
[367518648,1750841441669,-1986.01,0.00017966,2]
[367518649,1750841441678,-532.52,0.00017967,2]
[367518651,1750841441687,-924.6,0.00017967,2]
[367518653,1750841441696,-4935.68,0.00017967,2]
[367518655,1750841441705,-857.61,0.00017967,2]
[367518657,1750841441714,-151.0,0.00018,2]
[367518672,1750841441850,-500.0,0.00018068,2]
[367518675,1750841441860,-152.61247216,0.00018086,2]
[367518677,1750841441870,-500.0,0.00018086,2]
[367518679,1750841441880,-5000.0,0.00018086,2]
[367518681,1750841441889,-500.0,0.00018086,2]
[367518683,1750841441898,-500.0,0.00018086,2]
[367518685,1750841441907,-500.0,0.00018086,2]
[367518687,1750841441917,-1688.0,0.00018086,2]
[367518689,1750841441926,-207.4,0.00018086,2]
[367518691,1750841441935,-500.0,0.00018086,2]
[367518693,1750841441944,-500.0,0.00018086,2]
[367518695,1750841441953,-500.0,0.00018086,2]
[367518697,1750841441962,-500.0,0.00018086,2]
[367518699,1750841441972,-500.0,0.00018086,2]
[367518701,1750841441982,-500.0,0.00018086,2]
[367518703,1750841441991,-500.0,0.00018086,2]
[367518705,1750841442000,-500.0,0.00018086,2]
[367518707,1750841442009,-500.0,0.00018086,2]
[367518709,1750841442018,-500.0,0.00018086,2]
[367518711,1750841442027,-500.0,0.00018086,2]
[367518713,1750841442036,-500.0,0.00018086,2]
[367518714,1750841442045,-500.0,0.00018086,2]
[367518716,1750841442054,-500.0,0.00018086,2]
[367518718,1750841442063,-500.0,0.00018086,2]
[367518720,1750841442072,-500.0,0.00018086,2]
[367518722,1750841442081,-500.0,0.00018086,2]
[367518724,1750841442090,-500.0,0.00018086,2]
[367518726,1750841442099,-500.0,0.00018086,2]
[367518728,1750841442108,-500.0,0.00018086,2]
[367518730,1750841442118,-500.0,0.00018086,2]
[367518732,1750841442127,-500.0,0.00018086,2]
[367518734,1750841442137,-500.0,0.00018086,2]
[367518736,1750841442146,-500.0,0.00018086,2]
[367518738,1750841442155,-500.0,0.00018086,2]
[367518740,1750841442164,-500.0,0.00018086,2]
[367518742,1750841442175,-500.0,0.00018086,2]
[367518744,1750841442185,-500.0,0.00018086,2]
[367518746,1750841442194,-500.0,0.00018086,2]
[367518748,1750841442203,-500.0,0.00018086,2]
[367518750,1750841442213,-500.0,0.00018086,2]
[367518753,1750841442223,-500.0,0.00018086,2]
[367518755,1750841442233,-25000.0,0.00018086,2]
[367518757,1750841442242,-151.0,0.00018086,2]
[367518759,1750841442251,-151.0,0.00018086,2]
[367518761,1750841442261,-151.0,0.00018086,2]
[367518763,1750841442270,-288.89272804,0.00018086,2]
[367518765,1750841442279,-6744.63180949,0.00018086,2]
[367518767,1750841442288,-151.0,0.00018086,2]
[367518769,1750841442298,-151.0,0.00018086,2]
[367518771,1750841442307,-227.54651037,0.00018086,2]
[367518773,1750841442316,-11736.234879,0.0001809,2]
[367518775,1750841442326,-1750.456,0.00018141,2]
[367518777,1750841442335,-12767.0783464,0.00018141,2]
[367518779,1750841442344,-500.0,0.00018158,2]
[367518781,1750841442354,-500.0,0.00018158,2]
[367518783,1750841442363,-1815.222872,0.00018196,2]
[367518785,1750841442372,-160.0,0.00018208,2]
[367518787,1750841442381,-425.18553072,0.00018208,2]
[367518789,1750841442390,-160.0,0.00018208,2]
[367518791,1750841442399,-524.21181985,0.00018208,2]
[367518793,1750841442408,-160.0,0.00018208,2]
[367518795,1750841442419,-230.22714675,0.00018208,2]
[367518797,1750841442428,-836.86812089,0.00018208,2]
[367518799,1750841442437,-160.0,0.00018208,2]
[367518801,1750841442446,-846.80634355,0.00018208,2]
[367518803,1750841442456,-160.0,0.00018208,2]
[367518805,1750841442465,-160.0,0.00018208,2]
[367518807,1750841442474,-160.0,0.00018208,2]
[367518809,1750841442483,-12558.06783089,0.00018208,2]
[367518811,1750841442493,-213.69531788,0.00018208,2]
[367518813,1750841442502,-160.0,0.00018208,2]
[367518815,1750841442511,-2749.87,0.00018237,2]
[367518817,1750841442521,-460.0,0.00018237,2]
[367518819,1750841442530,-460.0,0.00018237,2]
[367518821,1750841442538,-460.0,0.00018237,2]
[367518823,1750841442547,-828.92,0.00018237,2]
[367518825,1750841442557,-2754.45,0.00018237,2]
[367518827,1750841442567,-2119.2,0.00018237,2]
[367518829,1750841442576,-460.0,0.00018237,2]
[367518831,1750841442585,-460.0,0.00018237,2]
[367518832,1750841442595,-460.0,0.00018237,2]
[367518834,1750841442605,-460.0,0.00018237,2]
[367518836,1750841442614,-460.0,0.00018237,2]
[367518838,1750841442623,-1804.43,0.00018237,2]
[367518841,1750841442633,-460.0,0.00018237,2]
[367518843,1750841442644,-409.04,0.00018237,2]
[367518845,1750841442654,-460.0,0.00018237,2]
[367518847,1750841442665,-460.0,0.00018237,2]
[367518849,1750841442675,-656.18,0.00018237,2]
[367518851,1750841442684,-460.0,0.00018237,2]
[367518853,1750841442693,-2351.99,0.00018237,2]
[367518855,1750841442706,-460.0,0.00018237,2]
[367518858,1750841442715,-460.0,0.00018238,2]
[367518860,1750841442725,-885.96,0.00018238,2]
[367518862,1750841442737,-460.0,0.00018238,2]
[367518864,1750841442746,-460.0,0.00018238,2]
[367518866,1750841442755,-273.27,0.00018238,2]
[367518868,1750841442765,-555.64,0.00018238,2]
[367518870,1750841442774,-460.0,0.00018238,2]
[367518871,1750841442785,-601.05,0.00018238,2]
[367518874,1750841442794,-5803.34,0.00018238,2]
[367518876,1750841442803,-460.0,0.00018238,2]
[367518878,1750841442812,-460.0,0.00018238,2]
[367518880,1750841442822,-480.18,0.00018238,2]
[367518882,1750841442831,-493.36,0.00018238,2]
[367518884,1750841442840,-404.91,0.00018238,2]
[367518886,1750841442849,-460.0,0.00018238,2]
[367518888,1750841442859,-460.0,0.0001824,2]
[367518890,1750841442868,-460.0,0.0001824,2]
[367518892,1750841442878,-460.0,0.0001824,2]
[367518894,1750841442887,-460.0,0.0001824,2]
[367518896,1750841442897,-2413.92,0.0001824,2]
[367518898,1750841442906,-600.44,0.0001824,2]
[367518900,1750841442917,-460.0,0.0001824,2]
[367518902,1750841442927,-460.0,0.0001824,2]
[367518904,1750841442936,-1643.11,0.0001824,2]
[367518906,1750841442946,-543.01,0.0001824,2]
[367518908,1750841442954,-1986.01,0.0001824,2]
[367518910,1750841442964,-532.52,0.00018241,2]
[367518912,1750841442974,-924.6,0.00018241,2]
[367518914,1750841442985,-4935.68,0.00018241,2]
[367518916,1750841442994,-857.61,0.00018241,2]
[367518918,1750841443004,-1882.38611826,0.00018251,2]
[367518920,1750841443014,-2953.27772594,0.00018277,2]
[367518922,1750841443023,-151.0,0.000183,2]
[367518924,1750841443032,-1952.03440464,0.00018306,2]
[367518926,1750841443042,-1000.0,0.00018327,2]
[367518928,1750841443051,-1000.0,0.00018327,2]
[367518930,1750841443060,-500.0,0.0001834,2]
[367518932,1750841443069,-1000.0,0.00018354,2]
[367518935,1750841443080,-500.92557149,0.0001836,2]
[367518937,1750841443090,-2024.25967761,0.00018361,2]
[367518939,1750841443099,-12767.0783464,0.00018383,2]
[367518941,1750841443108,-1000.0,0.00018393,2]
[367518943,1750841443117,-1000.0,0.00018393,2]
[367518945,1750841443126,-151.0,0.000184,2]
[367518947,1750841443135,-180.01440115,0.000184,2]
[367518949,1750841443145,-1941.95768611,0.00018416,2]
[367518951,1750841443156,-1000.0,0.0001842,2]
[367518953,1750841443165,-1000.0,0.0001842,2]
[367518955,1750841443175,-175.0,0.00018423,2]
[367518957,1750841443186,-420.0,0.00018423,2]
[367518959,1750841443195,-420.0,0.00018423,2]
[367518961,1750841443204,-1680.0,0.00018424,2]
[367518963,1750841443214,-1000.0,0.00018439,2]
[367518965,1750841443223,-1002.51720373,0.00018439,2]
[367518967,1750841443232,-160.0,0.00018463,3]
[367518969,1750841443242,-5888.0,0.00018481,2]
[367518971,1750841443252,-302.99578303,0.00018485,2]
[367518973,1750841443262,-5888.0,0.00018489,2]
[367518975,1750841443271,-584.82,0.00018505,3]
[367518977,1750841443281,-2749.87,0.00018511,2]
[367518979,1750841443291,-460.0,0.00018511,2]
[367518981,1750841443300,-460.0,0.00018511,2]
[367518983,1750841443310,-460.0,0.00018511,2]
[367518985,1750841443319,-828.92,0.00018511,2]
[367518987,1750841443328,-2754.45,0.00018511,2]